bitfinex/quotes_SOLUSD_20250817
["timestamp","ask_amount","ask_price","bid_price","bid_amount"]
[1755407105705,7.91569754,193.6,193.59,0.03]
[1755407106015,7.91569754,193.6,193.59,36.35]
[1755407106816,11.37513513,193.6,193.59,36.35]
[1755407107137,7.91569754,193.6,193.59,36.35]
[1755407107737,11.37513513,193.6,193.59,36.35]
[1755407107953,7.91569754,193.6,193.59,36.35]
[1755407108095,41.10621557,193.58,193.57,0.03]
[1755407108294,59.4704671,193.58,193.55,0.03]
[1755407108620,18.47016006,193.56,193.55,0.03]
[1755407108838,25.78027871,193.56,193.55,0.03]
[1755407109006,26.49027871,193.56,193.55,0.03]
[1755407109936,31.65663539,193.56,193.55,0.03]
[1755407110230,8.02011865,193.56,193.55,0.03]
[1755407110433,7.92462555,193.56,193.55,0.03]
[1755407110603,11.38406314,193.56,193.55,0.03]
[1755407110808,16.55041982,193.56,193.55,0.03]
[1755407112527,11.38406314,193.56,193.55,0.03]
[1755407112742,16.55041982,193.56,193.55,0.03]
[1755407113818,11.38406314,193.56,193.55,0.03]
[1755407115148,7.92462555,193.56,193.55,0.03]
[1755407117512,7.91816708,193.56,193.55,0.03]
[1755407117713,3.36394449,193.58,193.55,0.03]
[1755407117950,7.20785356,193.57,193.55,0.03]
[1755407118155,7.20769764,193.56,193.55,0.03]
[1755407118328,4.50375315,193.56,193.55,0.03]
[1755407118529,3.84375315,193.56,193.55,0.03]
[1755407118734,4.50375315,193.56,193.55,0.03]
[1755407119030,7.86769764,193.56,193.55,0.03]
[1755407119430,4.50375315,193.56,193.55,0.03]
[1755407119748,7.86769764,193.56,193.55,0.03]
[1755407122670,13.03405432,193.56,193.55,0.03]
[1755407123544,13.03284976,193.56,193.55,0.03]
[1755407126749,13.03298803,193.56,193.55,0.03]
[1755407126945,9.66904354,193.56,193.55,0.03]
[1755407127151,13.03298803,193.56,193.55,0.03]
[1755407130975,28.1392036,193.56,193.55,0.03]
[1755407131277,31.59921764,193.56,193.55,0.03]
[1755407133265,27.75653078,193.56,193.55,0.03]
[1755407133470,31.60200932,193.56,193.55,0.03]
[1755407135868,31.60268558,193.56,193.55,0.03]
[1755407136367,31.60313688,193.56,193.55,0.03]
[1755407136568,7.30662014,193.56,193.55,0.7]
[1755407136777,3.8466061,193.56,193.55,0.7]
[1755407138068,3.8466061,193.56,193.55,4.06394449]
[1755407138268,0.06,193.57,193.55,9.2305681]
[1755407138492,0.06,193.57,193.56,4.55058015]
[1755407140086,0.06,193.57,193.56,35.71693683]
[1755407140472,0.06,193.57,193.56,35.20030117]
[1755407141162,0.06,193.57,193.56,5.83635668]
[1755407141368,3.9113733,193.57,193.56,5.83635668]
[1755407141871,7.93531779,193.57,193.55,0.03]
[1755407142075,7.21531779,193.56,193.55,0.03]
[1755407143069,7.87531779,193.56,193.55,0.03]
[1755407143270,31.60790408,193.56,193.55,0.03]
[1755407145093,31.61527101,193.56,193.55,0.03]
[1755407147006,35.939568,193.56,193.55,0.03]
[1755407149083,31.61527101,193.56,193.55,0.03]
[1755407150986,57.61527101,193.56,193.55,0.03]
[1755407151297,18.47016006,193.55,193.54,0.03]
[1755407151484,25.78891433,193.55,193.54,0.03]
[1755407151707,26.45891433,193.55,193.54,0.03]
[1755407152000,7.31875427,193.55,193.54,0.69]
[1755407152195,7.32568296,193.55,193.54,0.69]
[1755407152396,10.68962745,193.55,193.54,0.69]
[1755407152783,15.03806663,193.55,193.54,0.03]
[1755407152982,30.8142822,193.55,193.54,0.03]
[1755407153201,31.63246663,193.55,193.54,0.03]
[1755407153900,27.76679771,193.55,193.54,0.03]
[1755407154111,31.63261224,193.55,193.54,0.03]
[1755407154480,31.63227325,193.55,193.54,0.03]
[1755407159106,20.27310613,193.54,193.53,0.03]
[1755407159312,35.97914649,193.54,193.53,0.03]
[1755407160089,35.97727868,193.54,193.53,0.03]
[1755407160292,32.61333419,193.54,193.53,0.03]
[1755407160491,26.77644363,193.54,193.53,0.03]
[1755407160691,25.79378183,193.54,193.53,0.03]
[1755407160991,30.96067239,193.54,193.53,0.03]
[1755407161802,31.63067239,193.54,193.53,0.03]
[1755407162201,35.97670258,193.54,193.53,0.03]
[1755407162511,31.63009629,193.54,193.53,0.03]
[1755407162890,31.63034112,193.54,193.53,0.03]
[1755407168118,10.68723499,193.54,193.53,0.69]
[1755407168300,15.03088865,193.54,193.53,0.69]
[1755407168631,20.19777921,193.54,193.53,0.03]
[1755407168812,35.97399478,193.54,193.53,0.03]
[1755407169400,31.63034112,193.54,193.53,0.03]
[1755407169919,31.63034112,193.54,193.52,0.03]
[1755407170121,73.00723499,193.53,193.52,0.03]
[1755407170323,73.67723499,193.53,193.52,0.03]
[1755407171147,26.0,193.5,193.49,0.03]
[1755407171356,77.34798398,193.5,193.49,0.03]
[1755407171505,78.01798398,193.5,193.49,0.03]
[1755407171706,73.67427156,193.5,193.49,0.03]
[1755407171905,75.74621956,193.5,193.49,0.03]
[1755407172201,80.91417821,193.5,193.49,0.03]
[1755407174126,15.10621557,193.49,193.47,0.03]
[1755407174333,25.78730941,193.48,193.47,0.03]
[1755407175207,31.65580227,193.48,193.47,0.03]
[1755407175912,30.95580227,193.48,193.47,0.03]
[1755407178410,30.95580227,193.48,193.47,0.72]
[1755407178609,7.31714935,193.48,193.47,0.72]
[1755407178813,3.85713531,193.48,193.47,0.72]
[1755407179115,7.2210798,193.48,193.47,0.72]
[1755407180640,7.21688765,193.48,193.47,0.72]
[1755407183019,3.85294316,193.48,193.47,0.72]
[1755407184840,3.85294316,193.48,193.47,5.88876001]
[1755407185237,3.85294316,193.48,193.47,9.2527045]
[1755407189423,3.47497294,193.5,193.47,9.2527045]
[1755407189618,7.33734575,193.49,193.48,9.22243735]
[1755407189819,3.86237281,193.49,193.48,9.22243735]
[1755407190019,7.33734575,193.49,193.48,9.22243735]
[1755407190330,3.86237281,193.49,193.48,9.22243735]
[1755407190531,7.33734575,193.49,193.48,9.22243735]
[1755407190737,3.86237281,193.49,193.48,9.22243735]
[1755407190935,7.33734575,193.49,193.48,9.22243735]
[1755407191135,3.86237281,193.49,193.48,9.22243735]
[1755407191322,7.33734575,193.49,193.48,9.22243735]
[1755407191645,3.86237281,193.49,193.48,9.22243735]
[1755407191820,7.33734575,193.49,193.48,9.22243735]
[1755407192025,3.86237281,193.49,193.48,9.22243735]
[1755407192226,7.33734575,193.49,193.48,9.22243735]
[1755407192549,3.86237281,193.49,193.48,9.22243735]
[1755407192734,7.33734575,193.49,193.48,9.22243735]
[1755407192934,3.86237281,193.49,193.48,9.22243735]
[1755407193143,7.33734575,193.49,193.48,9.22243735]
[1755407195533,7.33862053,193.49,193.48,9.22243735]
[1755407196541,0.06,193.51,193.48,9.73928663]
[1755407196764,0.06,193.51,193.5,3.36394449]
[1755407196949,3.92295412,193.51,193.5,3.88074035]
[1755407197250,3.92295412,193.51,193.5,9.738699]
[1755407198637,3.92195458,193.51,193.5,9.738699]
[1755407199231,0.06,193.51,193.5,9.738699]
[1755407199835,0.06,193.51,193.5,6.37475451]
[1755407200060,3.92131013,193.51,193.5,5.85795865]
[1755407200255,0.06,193.51,193.5,9.22190314]
[1755407200549,3.92078077,193.51,193.5,9.22190314]
[1755407200929,0.06,193.51,193.5,9.22190314]
[1755407202043,3.92012288,193.51,193.5,9.22190314]
[1755407203467,0.06,193.51,193.5,9.22190314]
[1755407203636,0.06,193.51,193.5,9.738699]
[1755407204278,0.06,193.51,193.5,35.738699]
[1755407205771,0.06,193.51,193.5,116.438699]
[1755407205970,0.06,193.51,193.5,115.92190314]
[1755407209980,0.06,193.51,193.5,117.99235014]
[1755407211261,0.06,193.51,193.5,133.52235014]
[1755407211462,0.06,193.51,193.5,117.99235014]
[1755407212976,0.77,193.51,193.5,85.86795865]
[1755407213276,0.77,193.51,193.5,122.14795865]
[1755407213663,0.77,193.51,193.5,80.7]
[1755407213881,4.62339803,193.51,193.5,80.7]
[1755407214049,4.62339803,193.51,193.5,116.98]
[1755407214251,3.91339803,193.51,193.5,41.44795865]
[1755407214465,0.06,193.51,193.5,45.53190314]
[1755407220572,0.06,193.53,193.52,3.36394449]
[1755407220785,0.06,193.54,193.52,120.86068694]
[1755407220987,0.06,193.55,193.54,26.0]
[1755407221188,0.06,193.55,193.54,66.16063354]
[1755407221488,1e-08,193.56,193.54,66.88063354]
[1755407221691,1e-08,193.56,193.55,4.08394449]
[1755407222603,1e-08,193.56,193.55,9.2505681]
[1755407224963,1e-08,193.57,193.55,11.3204791]
[1755407225163,1e-08,193.57,193.56,40.16058015]
[1755407225360,1e-08,193.57,193.56,40.88058015]
[1755407226490,1e-08,193.57,193.56,46.04693683]
[1755407226698,1e-08,193.57,193.56,42.68299234]
[1755407226899,1e-08,193.57,193.56,46.04693683]
[1755407229390,1e-08,193.57,193.56,126.74693683]
[1755407229594,1e-08,193.57,193.56,126.23030117]
[1755407230998,0.06,193.6,193.59,26.0]
[1755407231199,0.06,193.6,193.59,65.62394449]
[1755407232103,0.06,193.6,193.59,70.78950056]
[1755407234397,0.76,193.6,193.59,70.78950056]
[1755407238705,0.76,193.6,193.55,0.03]
[1755407238706,7.97268876,193.6,193.55,0.03]
[1755407239006,3.36394449,193.56,193.55,0.03]
[1755407239315,7.21268876,193.56,193.55,36.29]
[1755407239488,4.54874427,193.56,193.55,36.29]
[1755407239698,7.91268876,193.56,193.55,36.29]
[1755407243300,4.06394449,193.56,193.55,36.29]
[1755407243498,7.91715467,193.56,193.55,36.29]
[1755407243810,7.91715315,193.56,193.55,36.29]
[1755407245619,4.55320866,193.56,193.55,36.29]
[1755407245805,8.02144383,193.56,193.55,36.29]
[1755407245993,4.55320866,193.56,193.55,36.29]
[1755407246410,4.55373447,193.56,193.55,36.29]
[1755407246607,3.85373447,193.56,193.55,36.29]
[1755407246835,3.85373447,193.56,193.55,39.65394449]
[1755407247028,3.85373447,193.56,193.55,36.29]
[1755407247694,4.55373447,193.56,193.55,36.29]
[1755407249316,4.55455207,193.56,193.55,36.29]
[1755407249516,8.02278724,193.56,193.55,36.29]
[1755407249699,4.55455207,193.56,193.55,36.29]
[1755407250122,8.02278724,193.56,193.55,36.29]
[1755407250301,4.55455207,193.56,193.55,36.29]
[1755407250900,3.85455207,193.56,193.55,36.29]
[1755407251512,3.85455207,193.56,193.55,42.17662361]
[1755407252022,3.85455207,193.56,193.55,41.45662361]
[1755407252398,0.7,193.58,193.55,41.45662361]
[1755407252598,3.85435483,193.57,193.55,44.8205681]
[1755407252800,3.85435483,193.56,193.55,45.5405681]
[1755407253005,3.85435483,193.58,193.55,45.5405681]
[1755407253206,0.06,193.6,193.57,3.36394449]
[1755407253402,0.06,193.6,193.59,3.36394449]
[1755407253922,0.06,193.6,193.59,4.08394449]
[1755407254702,0.06,193.6,193.59,5.88555607]
[1755407254930,0.06,193.6,193.59,9.24950056]
[1755407255506,0.06,193.6,193.59,35.24950056]
[1755407255707,0.06,193.6,193.59,31.88555607]
[1755407255932,0.06,193.6,193.59,35.24950056]
[1755407256224,0.06,193.6,193.59,5.16555607]
[1755407256426,0.06,193.6,193.59,44.78950056]
[1755407257213,0.06,193.6,193.59,45.50950056]
[1755407258614,0.06,193.6,193.59,44.78950056]
[1755407259351,0.06,193.6,193.59,41.42555607]
[1755407259537,0.06,193.6,193.59,8.52950056]
[1755407259711,0.06,193.6,193.59,44.78950056]
[1755407259910,0.06,193.6,193.59,8.52950056]
[1755407260217,3.91473635,193.6,193.59,44.78950056]
[1755407261006,3.91473635,193.6,193.59,8.52950056]
[1755407261330,3.91473635,193.6,193.59,44.78950056]
[1755407261533,3.91502956,193.6,193.59,8.52950056]
[1755407261911,0.06,193.6,193.59,44.78950056]
[1755407262127,3.91502956,193.6,193.59,44.78950056]
[1755407262432,3.91502956,193.6,193.59,9.24950056]
[1755407262736,3.91502956,193.6,193.59,8.52950056]
[1755407263124,3.91502956,193.6,193.59,44.78950056]
[1755407263510,3.91502956,193.6,193.59,8.52950056]
[1755407263709,3.91502956,193.6,193.59,44.78950056]
[1755407264628,3.91502956,193.6,193.59,45.50950056]
[1755407264835,0.06,193.6,193.59,45.50950056]
[1755407265012,0.06,193.6,193.59,42.14555607]
[1755407265213,0.06,193.6,193.59,9.24950056]
[1755407265414,0.06,193.6,193.59,45.50950056]
[1755407265617,0.06,193.6,193.59,126.20950056]
[1755407265827,0.06,193.61,193.59,126.20950056]
[1755407266138,1e-08,193.61,193.6,4.60047341]
[1755407266707,1e-08,193.61,193.6,9.76576266]
[1755407266911,1e-08,193.61,193.6,15.03497288]
[1755407268439,0.06,193.63,193.62,26.0]
[1755407268736,0.06,193.63,193.62,62.26]
[1755407268916,0.06,193.63,193.62,72.02517576]
[1755407270718,0.06,193.63,193.62,152.72517576]
[1755407270920,0.06,193.63,193.62,152.20870019]
[1755407271136,0.06,193.63,193.62,148.8447557]
[1755407271350,0.06,193.63,193.62,152.20870019]
[1755407272433,0.06,193.63,193.62,151.48870019]
[1755407272645,0.06,193.63,193.62,152.20870019]
[1755407274862,0.72,193.63,193.62,122.1247557]
[1755407276332,0.72,193.63,193.62,125.48870019]
[1755407276748,0.72,193.63,193.62,44.78870019]
[1755407276949,0.06,193.63,193.62,44.78870019]
[1755407278855,0.72,193.63,193.62,5.1647557]
[1755407279061,0.72,193.63,193.62,41.4047557]
[1755407279374,0.72,193.63,193.62,36.24]
[1755407279539,0.72,193.63,193.6,89.25918287]
[1755407279740,4.08394449,193.63,193.61,36.24]
[1755407279955,3.84896873,193.62,193.61,36.24]
[1755407280139,3.42394449,193.63,193.61,36.24]
[1755407280460,0.66,193.62,193.61,36.24]
[1755407280658,4.50877426,193.62,193.61,36.24]
[1755407280828,4.50877426,193.62,193.6,80.73]
[1755407281027,3.42394449,193.63,193.61,36.24]
[1755407281257,3.84857072,193.62,193.61,36.24]
[1755407281453,7.21251521,193.62,193.6,0.03]
[1755407281655,26.44540158,193.61,193.58,0.03]
[1755407281835,3.36394449,193.59,193.55,0.03]
[1755407282039,3.36394449,193.56,193.55,0.03]
[1755407282357,7.21376469,193.56,193.55,0.03]
[1755407282750,7.87376469,193.56,193.55,0.03]
[1755407283352,11.34043549,193.56,193.55,0.03]
[1755407283558,7.87376469,193.56,193.55,0.03]
[1755407286540,13.04012137,193.56,193.55,0.03]
[1755407286758,16.50679217,193.56,193.55,0.03]
[1755407287142,36.27007287,193.56,193.55,0.03]
[1755407287362,31.61300774,193.56,193.55,0.03]
[1755407287765,31.61012595,193.56,193.55,0.03]
[1755407292396,28.24618146,193.56,193.55,0.03]
[1755407292750,31.61012595,193.56,193.55,0.03]
[1755407293380,71.23407044,193.56,193.55,0.03]
[1755407293740,67.87012595,193.56,193.55,0.03]
[1755407293955,31.61012595,193.56,193.55,0.03]
[1755407294159,67.89012595,193.56,193.55,0.03]
[1755407296867,64.04318754,193.56,193.55,0.03]
[1755407297173,67.88172826,193.56,193.55,0.03]
[1755407297368,67.8808545,193.56,193.55,0.03]
[1755407298755,71.24479899,193.56,193.55,0.03]
[1755407299361,75.49173503,193.56,193.55,0.03]
[1755407299966,71.65406807,193.56,193.55,0.03]
[1755407300162,75.49019862,193.56,193.55,0.03]
[1755407300369,31.59931809,193.56,193.55,0.03]
[1755407300576,67.21931809,193.56,193.55,0.03]
[1755407300759,67.86931809,193.56,193.55,0.03]
[1755407301381,71.23326258,193.56,193.55,0.03]
[1755407301769,73.30456658,193.56,193.55,0.03]
[1755407302980,73.30314168,193.56,193.55,0.03]
[1755407303578,34.95183768,193.56,193.55,0.03]
[1755407303964,27.5739487,193.56,193.55,0.03]
[1755407304166,10.66532094,193.56,193.55,0.74]
[1755407304375,10.66532094,193.56,193.55,0.03]
[1755407305980,10.66410549,193.56,193.55,0.03]
[1755407308081,7.300161,193.56,193.55,0.03]
[1755407308267,10.66410549,193.56,193.55,0.03]
[1755407311686,7.300161,193.56,193.55,0.74]
[1755407311887,7.19743469,193.56,193.55,0.74]
[1755407312089,3.8334902,193.56,193.55,0.74]
[1755407312475,3.8334902,193.56,193.55,4.10394449]
[1755407312769,3.8334902,193.56,193.55,0.74]
[1755407313190,3.8334902,193.56,193.55,5.90636598]
[1755407313974,0.06,193.58,193.55,5.90636598]
[1755407314288,3.83563797,193.57,193.56,0.71]
[1755407315020,0.06,193.58,193.56,0.71]
[1755407315178,3.83734532,193.57,193.56,5.87635668]
[1755407320471,3.83734532,193.57,193.55,0.03]
[1755407320472,16.48425389,193.57,193.55,0.03]
[1755407320713,12.61097457,193.56,193.55,0.03]
[1755407321110,12.62461459,193.56,193.55,0.03]
[1755407321291,16.95990855,193.56,193.55,0.03]
[1755407322509,22.12626523,193.56,193.55,0.03]
[1755407323289,17.79097127,193.56,193.54,0.03]
[1755407323489,16.96472896,193.55,193.54,0.03]
[1755407324033,12.62461459,193.55,193.54,0.03]
[1755407324307,8.62263453,193.55,193.54,0.74]
[1755407325614,12.96288593,193.55,193.54,0.74]
[1755407327923,8.62263453,193.55,193.54,0.74]
[1755407328801,7.32961279,193.55,193.54,0.74]
[1755407331412,10.69355728,193.55,193.54,0.03]
[1755407331631,11.41355728,193.55,193.54,0.03]
[1755407332747,10.69355728,193.55,193.54,0.03]
[1755407333164,10.69355728,193.55,193.54,0.7]
[1755407333471,10.69429306,193.55,193.54,0.03]
[1755407333880,10.69445412,193.55,193.54,0.03]
[1755407334036,10.70549613,193.55,193.54,0.03]
[1755407334655,11.42549613,193.55,193.54,0.03]
[1755407336370,10.70549613,193.55,193.54,0.03]
[1755407336578,7.34155164,193.55,193.54,0.7]
[1755407337051,7.34155164,193.55,193.54,0.03]
[1755407338761,11.42549613,193.55,193.54,0.03]
[1755407338977,7.34155164,193.55,193.54,0.03]
[1755407339159,11.42549613,193.55,193.54,0.03]
[1755407339458,7.34155164,193.55,193.54,0.7]
[1755407340664,7.34155164,193.55,193.54,0.03]
[1755407340854,11.42549613,193.55,193.54,0.03]
[1755407341359,10.70549613,193.55,193.54,0.03]
[1755407341565,10.70620793,193.55,193.54,0.03]
[1755407342064,7.34244628,193.55,193.54,0.03]
[1755407342271,3.47771281,193.55,193.54,0.03]
[1755407342578,7.34254498,193.55,193.54,0.7]
[1755407345952,8.63550555,193.55,193.54,0.7]
[1755407346152,8.63550555,193.55,193.54,0.03]
[1755407346554,8.63550555,193.55,193.54,0.7]
[1755407347193,7.34254498,193.55,193.54,0.7]
[1755407348379,8.63548021,193.55,193.54,0.7]
[1755407349197,8.63548021,193.55,193.54,0.03]
[1755407350468,3.47771281,193.55,193.54,0.03]
[1755407350664,8.63784457,193.55,193.54,0.7]
[1755407352270,8.63784457,193.55,193.54,0.03]
[1755407354073,8.69784457,193.55,193.54,0.03]
[1755407356096,8.69904171,193.55,193.54,0.03]
[1755407359810,8.70051721,193.55,193.54,0.03]
[1755407361118,13.04765823,193.55,193.54,0.03]
[1755407365610,9.17778896,193.55,193.54,0.03]
[1755407365815,13.05301923,193.55,193.54,0.03]
[1755407366339,8.70587821,193.55,193.54,0.03]
[1755407367119,8.70587821,193.55,193.53,5.86702342]
[1755407367340,13.00565669,193.54,193.53,5.86702342]
[1755407367638,13.00565669,193.54,193.53,0.03]
[1755407368736,13.00746875,193.54,193.53,0.03]
[1755407371942,13.00775798,193.54,193.53,0.03]
[1755407377964,9.13044152,193.54,193.53,0.03]
[1755407378271,13.00801442,193.54,193.53,0.03]
[1755407379261,8.64823594,193.54,193.53,3.37128374]
[1755407379453,7.35528571,193.54,193.53,3.37128374]
[1755407379866,7.35528571,193.54,193.53,1.21671575]
[1755407380064,7.35528571,193.54,193.53,2.85456799]
[1755407380645,7.35528571,193.54,193.53,39.11456799]
[1755407381139,3.47771281,193.54,193.53,36.29]
[1755407381340,3.47771281,193.54,193.53,44.28172553]
[1755407382882,3.47771281,193.54,193.53,42.12715754]
[1755407383084,3.47771281,193.54,193.53,44.28172553]
[1755407383763,3.48389208,193.54,193.53,44.28172553]
[1755407385652,0.06,193.55,193.53,44.28172553]
[1755407385982,0.06,193.55,193.54,3.36125704]
[1755407386680,0.06,193.55,193.54,4.57113075]
[1755407388182,0.06,193.56,193.54,131.54423688]
[1755407388478,0.06,193.57,193.55,40.4544417]
[1755407388658,0.06,193.57,193.56,3.88107736]
[1755407388860,0.06,193.57,193.56,4.57107736]
[1755407389278,0.06,193.57,193.56,9.73743404]
[1755407397689,0.06,193.57,193.56,45.56079838]
[1755407397889,0.06,193.57,193.56,46.07743404]
[1755407400288,1e-08,193.57,193.56,46.07743404]
[1755407403873,1e-08,193.57,193.56,126.77743404]
[1755407404072,1e-08,193.57,193.56,126.26079838]
[1755407406095,1e-08,193.57,193.56,141.79079838]
[1755407406400,1e-08,193.57,193.56,126.26079838]
[1755407406786,1e-08,193.57,193.56,125.04900426]
[1755407410408,1e-08,193.6,193.58,30.63621557]
[1755407410708,0.06,193.61,193.59,39.00920318]
[1755407410709,1e-08,193.61,193.59,39.00920318]
[1755407411010,0.73,193.65,193.63,26.0]
[1755407411011,0.06,193.65,193.63,26.0]
[1755407411519,0.06,193.65,193.63,64.53264758]
[1755407411980,0.73,193.64,193.63,64.53264758]
[1755407412290,0.73,193.64,193.63,69.69713655]
[1755407413484,0.06,193.64,193.63,69.69713655]
[1755407414007,0.06,193.64,193.63,70.90358544]
[1755407414606,1e-08,193.64,193.63,70.90358544]
[1755407414814,1e-08,193.64,193.63,44.90358544]
[1755407414979,1e-08,193.64,193.63,60.00980101]
[1755407416904,1e-08,193.65,193.63,60.00980101]
[1755407417089,1e-08,193.65,193.64,2.82264758]
[1755407417676,0.06,193.66,193.65,41.10621557]
[1755407417677,1e-08,193.66,193.65,41.10621557]
[1755407417877,0.06,193.69,193.68,26.0]
[1755407418081,0.06,193.69,193.68,65.00896315]
[1755407418319,0.06,193.69,193.68,29.33896315]
[1755407418488,0.06,193.69,193.68,65.67896315]
[1755407418878,0.06,193.69,193.68,70.84211887]
[1755407419685,0.76,193.74,193.68,83.75000817]
[1755407419987,0.76,193.74,193.72,2.15264758]
[1755407420185,0.76,193.74,193.73,36.32]
[1755407420811,0.76,193.74,193.73,41.48182315]
[1755407424691,0.76,193.74,193.73,44.84098417]
[1755407424891,0.1,193.74,193.73,44.84098417]
[1755407425285,0.1,193.74,193.73,41.48182315]
[1755407425485,0.76,193.74,193.73,41.48182315]
[1755407426721,0.1,193.74,193.73,41.48182315]
[1755407427283,0.76,193.74,193.73,41.48182315]
[1755407433220,0.1,193.74,193.73,41.48182315]
[1755407434430,0.76,193.74,193.73,41.48182315]
[1755407435327,0.1,193.74,193.73,41.48182315]
[1755407436917,0.1,193.74,193.67,3.249161]
[1755407436918,26.0,193.69,193.67,3.249161]
[1755407437098,26.0,193.62,193.57,0.03]
[1755407437329,3.35916102,193.58,193.56,0.03]
[1755407437635,41.10621557,193.54,193.5,0.02]
[1755407437835,15.10621557,193.5,193.45,6.67173846]
[1755407438145,3.35916102,193.47,193.45,0.03]
[1755407438462,7.2034808,193.47,193.45,0.03]
[1755407438624,7.4834808,193.47,193.45,0.03]
[1755407439558,10.94395802,193.47,193.45,0.03]
[1755407439744,7.4834808,193.47,193.45,0.03]
[1755407440128,3.84431978,193.47,193.45,0.03]
[1755407440324,3.63916102,193.47,193.45,0.03]
[1755407440531,8.76805626,193.47,193.45,0.03]
[1755407440745,5.53231822,193.51,193.45,0.03]
[1755407440746,8.76805626,193.46,193.45,0.03]
[1755407444862,8.48805626,193.46,193.45,0.03]
[1755407445246,5.12889524,193.46,193.45,0.03]
[1755407445442,8.48805626,193.46,193.45,0.03]
[1755407446639,8.48805626,193.46,193.44,5.19956162]
[1755407446859,5.12889524,193.45,193.44,5.19956162]
[1755407448654,5.12889524,193.45,193.44,5.86956162]
[1755407449450,3.35916102,193.46,193.44,5.19956162]
[1755407449650,8.46216515,193.45,193.44,0.03]
[1755407450655,5.10300413,193.45,193.43,42.20982408]
[1755407450972,8.46216515,193.44,193.43,42.20982408]
[1755407451542,5.10300413,193.44,193.43,42.20982408]
[1755407451756,8.46216515,193.44,193.43,42.20982408]
[1755407452158,5.10300413,193.44,193.43,42.20982408]
[1755407452361,5.10300413,193.44,193.43,42.87982408]
[1755407452549,5.09657961,193.44,193.43,42.87982408]
[1755407452758,5.09657961,193.44,193.43,42.20982408]
[1755407453452,8.45574063,193.44,193.43,42.87982408]
[1755407453648,8.45574063,193.44,193.43,42.20982408]
[1755407454054,5.09657961,193.44,193.43,42.20982408]
[1755407455065,8.45574063,193.44,193.43,42.20982408]
[1755407455264,5.09657961,193.44,193.43,42.20982408]
[1755407455470,8.45574063,193.44,193.43,42.20982408]
[1755407458253,5.09657961,193.44,193.43,42.20982408]
[1755407458449,3.35916102,193.44,193.43,42.20982408]
[1755407458653,8.44830004,193.44,193.43,5.36982408]
[1755407459155,8.44830004,193.44,193.43,6.03982408]
[1755407459478,8.44830004,193.44,193.43,5.36982408]
[1755407460252,23.83451561,193.44,193.43,0.2]
[1755407461164,23.83473741,193.44,193.43,0.2]
[1755407461682,23.55473741,193.44,193.43,0.2]
[1755407461882,23.83473741,193.44,193.43,0.2]
[1755407462284,23.55473741,193.44,193.43,0.2]
[1755407462779,23.83473741,193.44,193.43,0.2]
[1755407464383,23.83473741,193.44,193.42,0.03]
[1755407464586,8.44852184,193.43,193.4,0.03]
[1755407464755,3.35916102,193.41,193.4,0.03]
[1755407464962,8.44852184,193.41,193.4,0.03]
[1755407465561,5.08936082,193.41,193.4,0.03]
[1755407465772,8.44852184,193.41,193.4,0.03]
[1755407466786,8.44685736,193.41,193.39,5.17089818]
[1755407466963,8.44685736,193.4,193.39,5.17089818]
[1755407467162,8.44685882,193.4,193.39,5.84089818]
[1755407467986,8.44685882,193.4,193.39,5.17089818]
[1755407468363,5.0876978,193.4,193.39,5.84089818]
[1755407468983,8.44685882,193.4,193.38,36.8]
[1755407469177,5.0876978,193.39,193.38,41.97104423]
[1755407469379,5.0876978,193.39,193.38,42.64104423]
[1755407470400,5.0876978,193.39,193.38,37.46569917]
[1755407472695,5.09776827,193.39,193.38,37.46569917]
[1755407473376,8.51797964,193.39,193.38,37.46569917]
[1755407475689,3.42021137,193.39,193.38,37.46569917]
[1755407475868,8.52793149,193.39,193.38,37.46569917]
[1755407476068,8.5279315,193.39,193.38,37.46569917]